bitfinex/quotes_SOLUSD_20220311
["timestamp","ask_amount","ask_price","bid_price","bid_amount"]
[1647016424765,52.53776655,80.815,80.77,61.875]
[1647016425265,15.0,80.814,75.16,0.03812]
[1647016425469,99.34668298,80.688,80.585,383.13121692]
[1647016425669,99.34668298,80.688,80.526,20.2229857]
[1647016425670,74.11,80.654,80.526,20.2229857]
[1647016425867,25.75850303,80.677,80.447,76.4838]
[1647016425868,25.0,80.604,80.477,4.88098046]
[1647016426069,23.33131982,80.612,80.551,145.0]
[1647016426365,123.5,80.599,80.554,11.90560978]
[1647016426568,5.08207151,80.588,80.55,248.29879157]
[1647016426772,197.11,80.589,80.55,248.29879157]
[1647016426773,14.42,80.58,80.55,248.29879157]
[1647016426965,197.11,80.579,80.55,248.29879157]
[1647016427164,123.0,80.579,80.55,248.29879157]
[1647016427466,14.42,80.58,80.5,1.8]
[1647016428465,123.5,80.579,80.541,0.8728363]
[1647016429165,14.42,80.58,80.541,0.8728363]
[1647016429766,23.33131982,80.612,80.542,55.77594324]
[1647016429968,14.42,80.61,80.542,55.77594324]
[1647016430167,14.42,80.61,80.542,58.82042281]
[1647016430366,14.42,80.61,80.543,3.04447957]
[1647016430567,123.5,80.609,80.543,3.04447957]
[1647016430769,123.5,80.609,80.542,55.77594324]
[1647016430968,123.5,80.609,80.541,0.8728363]
[1647016431368,123.5,80.609,80.541,3.91731587]
[1647016431970,123.5,80.609,80.542,58.46825019]
[1647016432475,14.42,80.61,80.542,58.46825019]
[1647016432668,14.42,80.61,80.543,3.04447957]
[1647016433068,123.5,80.609,80.543,3.04447957]
[1647016433269,123.5,80.609,80.542,58.46825019]
[1647016433471,123.5,80.609,80.541,0.8728363]
[1647016433672,14.42,80.61,80.541,0.8728363]
[1647016433673,18.6295,80.6,80.541,0.8728363]
[1647016433871,123.5,80.589,80.541,0.8728363]
[1647016434870,14.42,80.59,80.541,0.8728363]
[1647016435069,14.42,80.61,80.541,0.8728363]
[1647016435675,88.53,80.61,80.541,0.8728363]
[1647016435976,123.5,80.599,80.541,0.8728363]
[1647016436372,123.5,80.589,80.541,0.8728363]
[1647016436572,123.5,80.579,80.542,61.66049531]
[1647016436772,123.5,80.579,80.541,0.8728363]
[1647016437774,14.42,80.58,80.542,56.8837715]
[1647016438173,1.63140746,80.752,80.543,3.04447957]
[1647016438174,74.11,80.64,80.543,3.04447957]
[1647016438372,14.42,80.63,80.543,3.04447957]
[1647016438776,123.5,80.629,80.543,3.04447957]
[1647016438973,123.5,80.623,80.543,3.04447957]
[1647016439174,123.5,80.609,80.543,3.04447957]
[1647016439373,14.42,80.6,80.543,3.04447957]
[1647016439581,14.42,80.61,80.543,3.04447957]
[1647016440183,14.42,80.61,80.544,6.205]
[1647016440685,6.205,80.636,80.55,18.6086]
[1647016440885,23.4377,80.637,80.551,6.454]
[1647016441184,123.5,80.636,80.552,0.25]
[1647016441388,23.4377,80.637,80.553,6.203]
[1647016441889,123.5,80.636,80.553,6.203]
[1647016442283,123.5,80.636,80.543,6.203]
[1647016442486,123.5,80.634,80.543,6.203]
[1647016442683,123.5,80.619,80.543,6.203]
[1647016442885,123.5,80.619,80.542,56.8837715]
[1647016443082,74.11,80.616,80.541,0.8728363]
[1647016443286,123.5,80.601,80.541,0.8728363]
[1647016443484,123.5,80.589,80.541,0.8728363]
[1647016443889,123.5,80.579,80.541,0.8728363]
[1647016444087,137.92,80.57,80.541,0.8728363]
[1647016444287,14.42,80.57,80.541,0.8728363]
[1647016444486,14.42,80.57,80.542,57.27507136]
[1647016444904,14.42,80.59,80.542,57.27507136]
[1647016445102,14.42,80.58,80.542,57.27507136]
[1647016445303,123.5,80.579,80.542,57.27507136]
[1647016446304,123.0,80.579,80.542,57.27507136]
[1647016446506,14.42,80.58,80.542,57.27507136]
[1647016446705,6.206,80.599,80.542,57.27507136]
[1647016446904,14.42,80.59,80.542,57.27507136]
[1647016447104,123.5,80.598,80.542,57.27507136]
[1647016447704,137.92,80.61,80.542,57.27507136]
[1647016450008,212.03,80.61,80.541,0.8728363]
[1647016450209,197.61,80.608,80.541,0.8728363]
[1647016450412,197.61,80.606,80.541,0.8728363]
[1647016450610,123.5,80.592,80.541,0.8728363]
[1647016450810,123.5,80.579,80.541,0.8728363]
[1647016451111,123.5,80.569,80.541,0.8728363]
[1647016451309,137.92,80.56,80.541,0.8728363]
[1647016451516,137.92,80.56,80.542,0.09324835]
[1647016451910,14.42,80.56,80.542,0.09324835]
[1647016452311,73.2371637,80.59,80.542,0.09324835]
[1647016452511,14.42,80.58,80.542,0.09324835]
[1647016452913,137.92,80.58,80.542,0.09324835]
[1647016454414,137.92,80.58,80.512,0.09324835]
[1647016454613,137.92,80.58,80.511,62.9476133]
[1647016455514,197.61,80.578,80.511,62.9476133]
[1647016456114,123.5,80.578,80.511,62.9476133]
[1647016456518,123.5,80.579,80.512,6.207]
[1647016456916,6.207,80.617,80.512,6.207]
[1647016457116,6.207,80.617,80.513,3.04447957]
[1647016457317,6.207,80.617,80.514,6.206]
[1647016457517,6.207,80.617,80.52,18.6191]
[1647016457817,74.11,80.614,80.521,6.205]
[1647016458019,123.5,80.607,80.521,6.205]
[1647016458620,74.11,80.594,80.52,18.6191]
[1647016458820,123.5,80.587,80.52,18.6191]
[1647016459124,123.5,80.577,80.511,62.9476133]
[1647016459320,123.5,80.577,80.512,6.207]
[1647016460724,14.42,80.58,80.52,18.6199]
[1647016460921,123.5,80.589,80.52,18.6199]
[1647016461124,123.5,80.589,80.521,6.206]
[1647016461520,123.5,80.589,80.52,18.6199]
[1647016461724,197.61,80.598,80.521,6.206]
[1647016461922,197.61,80.598,80.52,18.6199]
[1647016464726,197.61,80.588,80.52,18.6199]
[1647016464928,123.5,80.579,80.52,18.6199]
[1647016467028,123.5,80.579,80.511,62.9476133]
[1647016467228,123.5,80.577,80.511,62.9476133]
[1647016468227,123.5,80.579,80.511,62.9476133]
[1647016469229,123.5,80.579,80.52,18.6218]
[1647016470234,123.5,80.589,80.52,18.6218]
[1647016470432,14.42,80.6,80.52,18.6218]
[1647016470632,14.42,80.62,80.52,18.6218]
[1647016470834,6.206,80.623,80.52,18.6218]
[1647016471260,14.42,80.62,80.52,18.6218]
[1647016472065,6.205,80.619,80.52,63.34502909]
[1647016472367,24.9916,80.636,80.55,18.6063]
[1647016472562,14.42,80.65,80.551,57.15606308]
[1647016472764,14.42,80.66,80.551,60.20054265]
[1647016472962,14.42,80.65,80.552,3.04447957]
[1647016473361,74.11,80.649,80.57,18.6042]
[1647016473564,74.11,80.649,80.567,52.33680593]
[1647016473565,74.11,80.647,80.567,52.33680593]
[1647016473762,74.11,80.645,80.567,52.33680593]
[1647016473964,74.11,80.643,80.567,52.33680593]
[1647016474162,74.11,80.629,80.537,3.04447957]
[1647016474363,80.314,80.628,80.55,18.6157]
[1647016474667,74.11,80.628,80.55,18.6157]
[1647016475266,74.11,80.626,80.548,50.77667493]
[1647016475463,74.11,80.624,80.548,50.77667493]
[1647016475663,74.11,80.609,80.505,78.2147]
[1647016476062,14.42,80.61,80.505,78.2147]
[1647016476063,74.11,80.607,80.505,78.2147]
[1647016476463,74.11,80.605,80.505,78.2147]
[1647016476670,74.11,80.599,80.51,18.6252]
[1647016476867,14.42,80.59,80.51,18.6252]
[1647016477065,74.11,80.589,80.51,18.6252]
[1647016478067,14.42,80.59,80.51,18.6252]
[1647016478466,6.207,80.633,80.51,18.6252]
[1647016478665,0.92,80.699,80.51,18.6252]
[1647016478666,14.42,80.61,80.511,28.86500866]
[1647016478868,180.26,80.67,80.54,18.6117]
[1647016478869,14.42,80.63,80.54,18.6117]
[1647016479069,14.42,80.63,80.541,55.32199096]
[1647016479269,14.42,80.65,80.541,55.32199096]
[1647016479470,14.42,80.65,80.543,4.95570196]
[1647016479670,74.11,80.669,80.544,0.25]
[1647016479874,14.42,80.66,80.56,18.604]
[1647016480071,14.42,80.66,80.561,53.42690709]
[1647016480270,6.202,80.659,80.561,53.42690709]
[1647016480469,123.5,80.658,80.562,3.04447957]
[1647016480670,123.5,80.656,80.562,3.04447957]
[1647016480870,123.5,80.654,80.562,3.04447957]
[1647016481071,197.61,80.648,80.59,18.6048]
[1647016481275,123.5,80.633,80.561,53.42690709]
[1647016481478,74.11,80.622,80.532,24.2717]
[1647016481677,123.5,80.609,80.532,24.2717]
[1647016481976,123.5,80.609,80.521,3.04447957]
[1647016482379,123.5,80.609,80.54,18.6186]
[1647016482576,123.5,80.609,80.541,62.32234543]
[1647016482777,123.5,80.607,80.541,62.32234543]
[1647016483579,123.5,80.607,80.55,18.6145]
[1647016483778,123.5,80.609,80.55,18.6145]
[1647016484780,14.42,80.62,80.55,18.6145]
[1647016484984,123.5,80.619,80.55,18.6145]
[1647016486583,123.5,80.629,80.55,18.6145]
[1647016486783,6.204,80.644,80.55,18.6145]
[1647016486984,6.203,80.674,80.58,18.6]
[1647016487186,14.42,80.66,80.581,47.34794595]
[1647016487590,197.61,80.658,80.581,47.34794595]
[1647016487786,197.61,80.656,80.581,47.34794595]
[1647016487987,197.61,80.654,80.581,47.34794595]
[1647016488286,197.61,80.649,80.581,47.34794595]
[1647016489385,197.61,80.649,80.58,18.6099]
[1647016489687,197.61,80.647,80.544,47.7755]
[1647016489909,197.61,80.639,80.57,18.6124]
[1647016490112,123.5,80.629,80.57,18.6124]
[1647016490513,123.5,80.629,80.571,56.40690152]
[1647016491212,123.5,80.629,80.57,18.6124]
[1647016491411,123.5,80.627,80.57,18.6124]
[1647016492210,123.5,80.627,80.571,58.62254034]
[1647016492411,137.92,80.63,80.58,18.6073]
[1647016492811,14.42,80.63,80.58,18.6073]
[1647016493224,14.42,80.65,80.58,18.6073]
[1647016493513,137.92,80.65,80.58,18.6073]
[1647016493712,137.92,80.65,80.57,83.75983307]
[1647016493713,123.5,80.648,80.57,40.34783307]
[1647016493912,123.5,80.644,80.517,5.17810375]
[1647016494116,123.5,80.629,80.517,5.17810375]
[1647016494311,123.5,80.627,80.53,27.11147957]
[1647016494713,74.11,80.624,80.531,63.33148987]
[1647016494912,123.5,80.609,80.531,63.33148987]
[1647016495616,14.42,80.61,80.54,18.6192]
[1647016495813,123.5,80.61,80.541,6.205]
[1647016496013,123.5,80.61,80.55,62.0271]
[1647016496213,123.5,80.61,80.551,57.56484139]
[1647016496616,123.5,80.61,80.56,18.6082]
[1647016496814,197.61,80.608,80.551,51.35984139]
[1647016497415,123.5,80.608,80.551,51.35984139]
[1647016497719,123.5,80.629,80.56,18.6149]
[1647016498015,14.42,80.64,80.561,6.203]
[1647016498616,14.42,80.64,80.57,62.0159]
[1647016498818,123.5,80.639,80.58,18.6048]
[1647016499219,74.11,80.632,80.571,54.57323426]
[1647016499418,123.5,80.629,80.571,54.57323426]
[1647016499819,14.42,80.63,80.58,18.6108]
[1647016500018,6.203,80.665,80.58,18.6108]
[1647016500221,6.2,80.685,80.581,27.93573307]
[1647016500418,14.42,80.68,80.581,27.93573307]
[1647016500618,6.2,80.679,80.582,23.6770664]
[1647016500822,123.5,80.66,80.6,18.5967]
[1647016501021,123.5,80.669,80.601,64.68310778]
[1647016501424,123.5,80.665,80.59,61.9887]
[1647016501622,123.5,80.657,80.571,3.04447957]
[1647016501821,123.5,80.649,80.572,6.202]
[1647016502022,123.5,80.645,80.58,18.6105]
[1647016502222,74.11,80.646,80.58,18.6105]
[1647016502223,123.5,80.637,80.58,18.6105]
[1647016502423,123.5,80.635,80.58,18.6105]
[1647016502623,123.5,80.627,80.551,3.04447957]
[1647016502825,123.5,80.627,80.561,23.6770664]
[1647016503022,123.5,80.627,80.562,6.203]
[1647016503423,123.5,80.627,80.58,18.6109]
[1647016503623,123.5,80.639,80.58,18.6109]
[1647016503824,123.5,80.629,80.58,18.6109]
[1647016504227,14.42,80.63,80.58,18.6109]
[1647016504625,123.5,80.64,80.58,18.6109]
[1647016504825,123.5,80.649,80.58,18.6109]
[1647016505228,123.5,80.649,80.581,9.24647957]
[1647016505429,22.5614,80.655,80.6,18.5988]
[1647016505627,6.202,80.693,80.601,63.29384502]
[1647016505827,14.42,80.68,80.601,63.29384502]
[1647016506028,14.42,80.68,80.602,3.04447957]
[1647016506228,14.42,80.7,80.603,6.2]
[1647016506527,123.5,80.698,80.621,57.31491587]
[1647016506728,123.5,80.699,80.63,61.968]
[1647016507727,123.5,80.699,80.64,18.5904]
[1647016507929,123.5,80.699,80.641,63.41151854]
[1647016508527,123.5,80.699,80.64,18.5904]
[1647016508528,123.5,80.689,80.61,23.6770664]
[1647016508729,123.0,80.687,80.6,18.6037]
[1647016508928,123.0,80.677,80.601,6.2]
[1647016509127,141.6041,80.66,80.601,6.2]
[1647016509328,123.0,80.66,80.596,6.2]
[1647016509528,123.0,80.66,80.597,61.73603067]
[1647016509732,14.42,80.68,80.61,18.6022]
[1647016509929,123.5,80.679,80.611,66.795885]
[1647016510450,123.5,80.679,80.612,23.6770664]
[1647016510629,123.5,80.679,80.613,6.199]
[1647016510829,123.5,80.677,80.62,18.5993]
[1647016511029,123.5,80.677,80.621,6.199]
[1647016511230,123.5,80.669,80.611,60.595885]
[1647016511931,123.5,80.68,80.62,18.6]
[1647016512131,14.42,80.69,80.621,6.199]
[1647016512334,14.42,80.7,80.621,23.6770664]
[1647016512533,14.42,80.7,80.631,51.92888142]
[1647016512935,123.5,80.699,80.631,51.92888142]
[1647016513135,129.698,80.699,80.631,51.92888142]
[1647016513534,123.5,80.697,80.631,51.92888142]
[1647016514036,123.5,80.695,80.631,51.92888142]
[1647016514236,123.5,80.689,80.631,51.92888142]
[1647016514737,123.5,80.687,80.631,51.92888142]
[1647016515136,123.5,80.677,80.602,6.198]
[1647016515537,123.5,80.669,80.61,18.6008]
[1647016515734,123.5,80.669,80.611,6.2]
[1647016516134,123.5,80.669,80.612,62.00824907]
[1647016516335,106.807002,80.669,80.612,62.00824907]
[1647016517643,106.807002,80.657,80.602,6.2]
[1647016517840,106.807002,80.657,80.587,6.2]
[1647016518540,106.807002,80.657,80.588,59.52423744]
[1647016518747,106.807002,80.657,80.59,18.6059]
[1647016518940,106.807002,80.657,80.591,6.2]
[1647016519141,14.42,80.66,80.591,29.8770664]
[1647016519340,23.5583,80.667,80.592,23.6770664]
[1647016519541,23.5583,80.667,80.593,6.2]
[1647016519741,3.31981042,80.735,80.593,6.2]
[1647016519742,33.0134,80.71,80.61,18.5991]
[1647016519941,61.9845,80.72,80.611,59.59866814]
[1647016519942,6.199,80.709,80.611,59.59866814]
[1647016520143,74.11,80.708,80.611,83.27573454]
[1647016520343,14.42,80.7,80.611,83.27573454]
[1647016520545,14.42,80.7,80.612,23.6770664]
[1647016520742,14.42,80.7,80.613,6.199]
[1647016520944,14.42,80.7,80.63,18.5949]
[1647016521145,74.11,80.699,80.625,49.2576036]
[1647016521342,123.5,80.685,80.613,6.199]
[1647016521746,123.5,80.683,80.613,6.199]
[1647016521945,123.5,80.679,80.613,6.199]
[1647016522344,123.5,80.679,80.614,59.210188]
[1647016522947,123.5,80.679,80.62,18.5983]
[1647016523546,14.42,80.68,80.62,18.5983]
[1647016523969,23.5583,80.707,80.621,23.6770664]
[1647016524169,23.5583,80.707,80.64,18.5892]
[1647016524368,23.5583,80.707,80.641,52.21363987]
[1647016524769,23.0583,80.707,80.641,52.21363987]
[1647016525172,123.5,80.706,80.641,52.21363987]
[1647016527171,123.5,80.699,80.641,52.21363987]
[1647016527372,123.5,80.699,80.63,18.5934]
[1647016528471,123.5,80.689,80.626,57.15226176]
[1647016528671,123.5,80.705,80.626,57.15226176]
[1647016529574,123.5,80.706,80.63,18.595]
[1647016532480,23.0583,80.707,80.63,40.7926664]
[1647016532778,123.5,80.706,80.63,40.7926664]
[1647016532979,23.0583,80.707,80.63,40.7926664]
[1647016534184,123.5,80.706,80.63,22.1976664]
[1647016534383,123.5,80.706,80.626,57.15226176]
[1647016535787,123.5,80.706,80.63,18.5933]
[1647016536086,123.5,80.699,80.626,57.15226176]
[1647016536685,123.5,80.689,80.626,57.15226176]
[1647016537988,123.5,80.689,80.62,18.5968]
[1647016538188,123.5,80.679,80.615,47.3592]
[1647016538389,197.61,80.677,80.569,5.95663038]
[1647016538594,197.61,80.677,80.593,22.1976664]
[1647016538791,123.5,80.675,80.584,48.5918]
[1647016538992,123.5,80.675,80.601,46.52510453]
[1647016539290,123.5,80.669,80.614,61.82393317]
[1647016539891,123.5,80.669,80.584,48.5918]
[1647016540189,123.5,80.679,80.62,18.6001]
[1647016540391,14.42,80.68,80.62,18.6001]
[1647016540591,6.199,80.718,80.62,18.6001]
[1647016540791,14.42,80.71,80.621,90.57159661]
[1647016541199,6.198,80.709,80.634,63.41469221]
[1647016541394,18.598,80.69,80.634,63.41469221]
[1647016541592,74.11,80.693,80.61,24.7976664]
[1647016541792,123.5,80.686,80.603,22.771]
[1647016541992,123.5,80.676,80.6,18.6031]
[1647016542418,123.5,80.669,80.595,24.7976664]
[1647016542592,123.5,80.669,80.614,63.43551124]
[1647016542796,123.5,80.669,80.595,24.7976664]
[1647016542993,197.61,80.667,80.585,22.771]
[1647016543196,197.61,80.659,80.582,24.7976664]
[1647016543598,123.5,80.639,80.582,24.7976664]
[1647016543799,123.5,80.639,80.583,54.58066693]
[1647016544196,123.5,80.639,80.584,24.7976664]
[1647016545001,123.5,80.647,80.584,24.7976664]
[1647016545194,74.11,80.636,80.57,24.7976664]
[1647016545394,74.11,80.622,80.556,28.17649539]
[1647016545595,14.42,80.64,80.556,28.17649539]
[1647016545596,123.5,80.621,80.56,23.72213307]
[1647016545793,123.5,80.638,80.56,23.72213307]
[1647016545995,18.6103,80.63,80.561,91.19307889]
[1647016546194,123.5,80.638,80.561,91.19307889]
[1647016546399,14.42,80.65,80.561,91.19307889]
[1647016546400,23.42,80.658,80.562,51.89862846]
[1647016546598,6.202,80.657,80.562,51.89862846]
[1647016546795,6.202,80.657,80.563,51.89862846]
[1647016546796,123.5,80.656,80.563,51.89862846]
[1647016546997,23.42,80.658,80.563,51.89862846]
[1647016546998,123.5,80.654,80.563,51.89862846]
[1647016547196,123.5,80.652,80.581,50.20484219]
[1647016547597,123.5,80.652,80.581,73.92697526]
[1647016547901,23.42,80.658,80.581,73.92697526]
[1647016548296,23.42,80.658,80.6,18.6052]
[1647016548498,23.42,80.658,80.601,46.93563171]
[1647016549301,23.42,80.658,80.61,18.5981]
[1647016550801,47.4645,80.685,80.611,23.72213307]
[1647016551001,47.4645,80.685,80.63,18.5953]
[1647016551200,47.4645,80.685,80.631,58.01692419]
[1647016551401,53.6635,80.685,80.631,58.01692419]
[1647016551899,47.4645,80.685,80.631,58.01692419]
[1647016552099,6.199,80.684,80.631,58.01692419]
[1647016552699,47.4645,80.685,80.631,58.01692419]
[1647016552900,47.4645,80.685,80.64,18.5957]
[1647016553502,123.5,80.684,80.631,58.01692419]
[1647016554101,123.5,80.679,80.631,58.01692419]
[1647016555100,123.5,80.684,80.631,58.01692419]
[1647016555706,47.4645,80.685,80.631,58.01692419]
[1647016556606,47.4645,80.685,80.64,18.5955]
[1647016557306,14.42,80.72,80.641,6.198]
[1647016557530,47.3662,80.719,80.641,6.198]
[1647016557930,123.5,80.718,80.661,55.4032888]
[1647016559132,123.5,80.718,80.642,6.196]
[1647016559333,123.5,80.716,80.632,6.197]
[1647016559531,123.5,80.716,80.631,46.5362]
[1647016559734,123.5,80.714,80.631,46.5362]
[1647016559933,123.5,80.709,80.631,46.5362]
[1647016560133,123.5,80.699,80.632,54.18769865]
[1647016561134,123.5,80.708,80.632,54.18769865]
[1647016561335,123.5,80.699,80.632,54.18769865]
[1647016562037,197.61,80.697,80.62,18.5951]
[1647016562236,123.5,80.695,80.616,6.198]
[1647016562437,18.5965,80.69,80.616,6.198]
[1647016562634,123.5,80.689,80.616,6.198]
[1647016563035,123.5,80.689,80.617,64.85130209]
[1647016563236,123.5,80.689,80.617,88.57343516]
[1647016563642,123.5,80.689,80.618,23.72213307]
[1647016564236,123.5,80.689,80.62,18.5968]
[1647016564641,123.5,80.689,80.621,23.72213307]
[1647016564838,123.5,80.695,80.621,23.72213307]
[1647016565240,23.0584,80.696,80.616,6.198]
[1647016565241,74.11,80.678,80.616,6.198]
[1647016565440,14.42,80.68,80.616,6.198]
[1647016565441,197.61,80.677,80.616,6.198]
[1647016566043,6.199,80.676,80.616,6.198]
[1647016566242,197.61,80.669,80.616,6.198]
[1647016566444,197.61,80.659,80.616,6.198]
[1647016566645,197.61,80.659,80.584,23.72213307]
[1647016567341,197.61,80.659,80.585,58.63534124]
[1647016567545,123.5,80.649,80.585,58.63534124]
[1647016569346,123.5,80.657,80.59,18.6044]
[1647016569647,46.2489,80.658,80.59,42.32653307]
[1647016570446,14.42,80.66,80.59,42.32653307]
[1647016570649,23.3178,80.688,80.59,42.32653307]
[1647016570848,47.0853,80.687,80.591,123.5]
[1647016571047,47.0853,80.687,80.61,18.5938]
[1647016571346,47.0853,80.687,80.611,60.43135413]
[1647016571947,47.0853,80.687,80.62,18.5979]
[1647016571948,123.5,80.686,80.62,18.5979]
[1647016572146,123.5,80.686,80.593,71.03593307]
[1647016572348,123.5,80.684,80.593,71.03593307]
[1647016572548,197.61,80.677,80.593,71.03593307]
[1647016572748,123.5,80.669,80.593,47.3138]
[1647016573148,123.5,80.663,80.593,47.3138]
[1647016573450,197.61,80.657,80.588,46.94318832]
[1647016573948,123.5,80.649,80.588,46.94318832]
[1647016574151,123.5,80.649,80.59,18.605]
[1647016574952,123.5,80.659,80.59,18.605]
[1647016576053,33.0246,80.66,80.59,42.32713307]
[1647016576252,14.42,80.66,80.59,42.32713307]
[1647016577052,33.0229,80.66,80.59,42.32713307]
[1647016577852,18.6029,80.66,80.59,42.32713307]
[1647016578353,14.42,80.67,80.59,42.32713307]
[1647016578555,23.2071,80.676,80.59,42.32713307]
[1647016579457,123.5,80.675,80.59,42.32713307]
[1647016580257,18.6007,80.67,80.59,42.32713307]
[1647016580659,123.5,80.669,80.59,18.605]
[1647016581358,14.42,80.66,80.59,18.605]
[1647016581557,123.5,80.659,80.59,18.605]
[1647016583065,123.5,80.659,80.591,23.72213307]
[1647016583263,123.5,80.659,80.6,18.6032]
[1647016583466,123.5,80.659,80.601,53.59461369]
[1647016583890,33.0233,80.66,80.601,53.59461369]
[1647016584087,33.0233,80.66,80.602,23.72213307]
[1647016584390,14.42,80.66,80.61,18.6012]
[1647016587394,33.0227,80.66,80.61,18.6012]
[1647016588194,14.42,80.66,80.61,18.6012]
[1647016589298,14.42,80.69,80.611,23.72213307]
[1647016589497,14.42,80.69,80.63,18.5925]
[1647016589695,14.42,80.69,80.631,53.80561556]
[1647016589898,14.42,80.69,80.611,23.72213307]
[1647016590097,123.5,80.686,80.611,23.72213307]
[1647016590297,18.5988,80.68,80.611,23.72213307]
[1647016590898,123.5,80.679,80.61,18.6006]
[1647016591204,123.5,80.679,80.592,23.72213307]
[1647016591205,123.5,80.669,80.592,23.72213307]
[1647016591398,18.6021,80.67,80.58,23.72213307]
[1647016591399,14.42,80.66,80.58,23.72213307]
[1647016591599,123.5,80.659,80.565,23.15013307]
[1647016591800,147.398,80.659,80.565,23.15013307]
[1647016592097,123.5,80.657,80.565,23.15013307]
[1647016592297,18.6143,80.64,80.566,59.81443554]
[1647016592501,33.0343,80.64,80.566,59.81443554]
[1647016593800,33.0343,80.64,80.57,18.6084]
[1647016594001,33.0343,80.64,80.566,59.81443554]
[1647016594202,32.5343,80.64,80.566,59.81443554]
[1647016595501,123.5,80.639,80.566,59.81443554]
[1647016595705,197.61,80.637,80.566,59.81443554]
[1647016596003,123.5,80.619,80.566,59.81443554]
[1647016597104,18.6162,80.61,80.566,59.81443554]
[1647016597507,45.9529,80.629,80.566,59.81443554]
[1647016599408,45.9529,80.629,80.57,18.61]
[1647016599807,123.5,80.628,80.57,18.61]
[1647016600009,18.6121,80.62,80.566,59.81443554]
[1647016602110,45.9529,80.629,80.566,59.81443554]
[1647016603232,45.9529,80.629,80.57,18.6101]
[1647016604031,45.9529,80.629,80.566,59.81443554]
[1647016604431,18.6122,80.62,80.566,59.81443554]
[1647016605635,18.6148,80.61,80.552,124.1604]
[1647016605934,18.6148,80.61,80.552,76.88]
[1647016606635,18.6148,80.61,80.553,52.00154972]
[1647016607738,23.9313,80.618,80.554,23.15013307]
[1647016608736,23.9313,80.618,80.56,18.6123]
[1647016609735,23.9313,80.618,80.553,52.00154972]
[1647016609936,18.6147,80.61,80.553,52.00154972]
[1647016611335,23.9313,80.618,80.56,18.6126]
[1647016611738,23.9313,80.618,80.561,23.15013307]
[1647016612338,23.9313,80.618,80.57,18.6098]
[1647016613640,23.9313,80.618,80.56,18.6125]
[1647016613841,23.9313,80.618,80.553,52.00154972]
[1647016614041,23.9313,80.618,80.561,25.4034664]
[1647016614651,14.42,80.64,80.561,25.4034664]
[1647016614943,14.42,80.64,80.57,18.609]
[1647016615451,123.5,80.628,80.57,18.609]
[1647016615644,123.5,80.628,80.553,75.46254972]
[1647016616044,123.5,80.628,80.554,25.4034664]
[1647016616244,33.0305,80.63,80.56,18.6132]
[1647016616645,33.0305,80.63,80.561,25.4034664]
[1647016617048,24.1996,80.628,80.561,25.4034664]
[1647016617246,18.6119,80.62,80.57,18.6111]
[1647016617451,24.1996,80.628,80.57,18.6111]
[1647016617648,24.1996,80.628,80.57,44.0145664]
[1647016618346,18.6123,80.62,80.57,18.6111]
[1647016618546,18.6123,80.62,80.56,18.6126]
[1647016619247,123.5,80.619,80.553,52.00154972]
[1647016619650,18.6162,80.61,80.553,52.00154972]